[Event "Titled Tuesday Blitz June 22 2021"]
[White "Gevorgyan, David Sh."]
[Black "Andreikin, Dmitry"]
[WhiteFideId "13303244"]
[BlackFideId "4158814"]
[WhiteElo "2255"]
[BlackElo "2782"]
[Result "0-1"]
[Round "05"]
[TimeControl "180+1"]
[Date "2021.06.22"]
[WhiteClock "0:00:02"]
[BlackClock "0:00:08"]

1. d4 {[%clk 0:03:00]}  Nf6 {[%clk 0:02:59]} 2. c4 {[%clk 0:03:01]}  e6 {[%clk 0:02:57]} 3. Nc3 {[%clk 0:03:01]}  Bb4 {[%clk 0:02:56]} 4. e3 {[%clk 0:03:01]}  O-O {[%clk 0:02:54]} 5. a3 {[%clk 0:03:01]}  Bxc3+ {[%clk 0:02:53]} 6. bxc3 {[%clk 0:03:02]}  c5 {[%clk 0:02:52]} 7. Bd3 {[%clk 0:03:01]}  Nc6 {[%clk 0:02:51]} 8. Ne2 {[%clk 0:03:00]}  d6 {[%clk 0:02:48]} 9. O-O {[%clk 0:02:56]}  e5 {[%clk 0:02:48]} 10. Ng3 {[%clk 0:02:46]}  Re8 {[%clk 0:02:40]} 11. dxc5 {[%clk 0:02:41]}  dxc5 {[%clk 0:02:38]} 12. e4 {[%clk 0:02:40]}  Be6 {[%clk 0:02:27]} 13. Be3 {[%clk 0:02:35]}  b6 {[%clk 0:02:19]} 14. f3 {[%clk 0:02:31]}  Na5 {[%clk 0:02:11]} 15. Qe2 {[%clk 0:02:26]}  Qc8 {[%clk 0:02:03]} 16. Rfb1 {[%clk 0:02:15]}  Qa6 {[%clk 0:01:57]} 17. Rb5 {[%clk 0:02:12]}  Red8 {[%clk 0:01:51]} 18. a4 {[%clk 0:01:39]}  Ne8 {[%clk 0:01:25]} 19. Nf5 {[%clk 0:01:25]}  Nc7 {[%clk 0:01:19]} 20. Ne7+ {[%clk 0:00:38]}  Kh8 {[%clk 0:01:12]} 21. Nd5 {[%clk 0:00:34]}  Nxb5 {[%clk 0:01:07]} 22. axb5 {[%clk 0:00:28]}  Qb7 {[%clk 0:01:07]} 23. Rb1 {[%clk 0:00:23]}  f6 {[%clk 0:00:58]} 24. f4 {[%clk 0:00:21]}  exf4 {[%clk 0:00:58]} 25. Bxf4 {[%clk 0:00:20]}  Qf7 {[%clk 0:00:58]} 26. e5 {[%clk 0:00:15]}  fxe5 {[%clk 0:00:41]} 27. Bxe5 {[%clk 0:00:12]}  Bxd5 {[%clk 0:00:27]} 28. Rf1 {[%clk 0:00:12]}  Qg8 {[%clk 0:00:20]} 29. cxd5 {[%clk 0:00:10]}  Rxd5 {[%clk 0:00:20]} 30. Rf5 {[%clk 0:00:03]}  Rad8 {[%clk 0:00:13]} 31. Bc2 {[%clk 0:00:03]}  Rd2 {[%clk 0:00:12]} 32. Qe4 {[%clk 0:00:03]}  Nc4 {[%clk 0:00:09]} 33. Rg5 {[%clk 0:00:02]}  Nxe5 {[%clk 0:00:08]} 0-1


[Site "https://www.chess.com"]

[Event "Titled Tuesday Blitz June 22 2021"]
[White "Goryachkina, Aleksandra"]
[Black "Manukyan, Sargis A."]
[WhiteFideId "4147103"]
[BlackFideId "13303970"]
[WhiteElo "2441"]
[BlackElo "2187"]
[Result "1-0"]
[Round "05"]
[TimeControl "180+1"]
[Date "2021.06.22"]
[WhiteClock "0:01:37"]
[BlackClock "0:02:28"]

1. e4 {[%clk 0:02:59]}  e6 {[%clk 0:02:59]} 2. d4 {[%clk 0:02:58]}  d5 {[%clk 0:03:00]} 3. Nd2 {[%clk 0:02:55]}  Nc6 {[%clk 0:02:59]} 4. Ngf3 {[%clk 0:02:54]}  Nf6 {[%clk 0:03:00]} 5. e5 {[%clk 0:02:52]}  Nd7 {[%clk 0:03:00]} 6. Bb5 {[%clk 0:02:50]}  a6 {[%clk 0:02:59]} 7. Bxc6 {[%clk 0:02:41]}  bxc6 {[%clk 0:02:59]} 8. O-O {[%clk 0:02:41]}  c5 {[%clk 0:02:59]} 9. c3 {[%clk 0:02:41]}  a5 {[%clk 0:02:55]} 10. Re1 {[%clk 0:02:39]}  cxd4 {[%clk 0:02:54]} 11. cxd4 {[%clk 0:02:38]}  c5 {[%clk 0:02:55]} 12. Nf1 {[%clk 0:02:36]}  Be7 {[%clk 0:02:51]} 13. Ng3 {[%clk 0:02:31]}  O-O {[%clk 0:02:50]} 14. dxc5 {[%clk 0:02:16]}  Nxc5 {[%clk 0:02:50]} 15. Nd4 {[%clk 0:02:16]}  Qd7 {[%clk 0:02:44]} 16. Nh5 {[%clk 0:01:48]}  Kh8 {[%clk 0:02:27]} 17. Qg4 {[%clk 0:01:38]}  Kg8 {[%clk 0:02:28]} 18. Qxg7# {[%clk 0:01:37]} 1-0


[Site "https://www.chess.com"]

[Event "Titled Tuesday Blitz June 22 2021"]
[White "Gracia Alvarez, Gerardo Antonio"]
[Black "Perez Gormaz, Matias"]
[WhiteFideId "5109124"]
[BlackFideId "3406342"]
[WhiteElo "2148"]
[BlackElo "2414"]
[Result "0-1"]
[Round "05"]
[TimeControl "180+1"]
[Date "2021.06.22"]
[WhiteClock "0:00:10"]
[BlackClock "0:00:09"]

1. e4 {[%clk 0:03:00]}  e5 {[%clk 0:02:59]} 2. Nf3 {[%clk 0:03:00]}  Nc6 {[%clk 0:02:59]} 3. Bc4 {[%clk 0:03:01]}  Bc5 {[%clk 0:02:59]} 4. c3 {[%clk 0:03:00]}  Nf6 {[%clk 0:02:59]} 5. d4 {[%clk 0:02:57]}  exd4 {[%clk 0:02:58]} 6. b4 {[%clk 0:02:56]}  Bb6 {[%clk 0:02:41]} 7. e5 {[%clk 0:02:50]}  d5 {[%clk 0:02:36]} 8. exf6 {[%clk 0:02:44]}  dxc4 {[%clk 0:02:33]} 9. Qe2+ {[%clk 0:02:40]}  Be6 {[%clk 0:02:29]} 10. fxg7 {[%clk 0:02:29]}  Rg8 {[%clk 0:02:28]} 11. b5 {[%clk 0:02:30]}  Ne7 {[%clk 0:02:22]} 12. cxd4 {[%clk 0:02:20]}  Qd5 {[%clk 0:02:03]} 13. Nc3 {[%clk 0:02:11]}  Ba5 {[%clk 0:02:01]} 14. Bd2 {[%clk 0:02:05]}  Bxc3 {[%clk 0:01:59]} 15. Bxc3 {[%clk 0:02:06]}  Rxg7 {[%clk 0:01:57]} 16. O-O-O {[%clk 0:02:01]}  O-O-O {[%clk 0:01:50]} 17. Rhg1 {[%clk 0:01:50]}  Rg4 {[%clk 0:01:30]} 18. h3 {[%clk 0:01:39]}  Re4 {[%clk 0:01:28]} 19. Qd2 {[%clk 0:01:36]}  Qxb5 {[%clk 0:01:26]} 20. Ng5 {[%clk 0:01:36]}  Rh4 {[%clk 0:01:09]} 21. Nxe6 {[%clk 0:01:14]}  fxe6 {[%clk 0:01:08]} 22. Rge1 {[%clk 0:01:15]}  Nd5 {[%clk 0:00:44]} 23. Rxe6 {[%clk 0:01:06]}  Nf4 {[%clk 0:00:39]} 24. Re3 {[%clk 0:00:46]}  Nxg2 {[%clk 0:00:37]} 25. Re5 {[%clk 0:00:40]}  Qa4 {[%clk 0:00:16]} 26. Qg5 {[%clk 0:00:36]}  Qa3+ {[%clk 0:00:17]} 27. Bb2 {[%clk 0:00:36]}  Qxh3 {[%clk 0:00:17]} 28. Re7 {[%clk 0:00:19]}  Nf4 {[%clk 0:00:15]} 29. Qe5 {[%clk 0:00:16]}  Nd5 {[%clk 0:00:12]} 30. Rg7 {[%clk 0:00:16]}  Rh5 {[%clk 0:00:08]} 31. Qe4 {[%clk 0:00:12]}  Qf5 {[%clk 0:00:07]} 32. Qxf5+ {[%clk 0:00:11]}  Rxf5 {[%clk 0:00:08]} 33. Rxh7 {[%clk 0:00:11]}  Rxf2 {[%clk 0:00:08]} 34. Rg1 {[%clk 0:00:11]}  c3 {[%clk 0:00:08]} 35. Ba3 {[%clk 0:00:11]}  Rxa2 {[%clk 0:00:09]} 36. Bc5 {[%clk 0:00:10]}  Ra1+ {[%clk 0:00:09]} 0-1


[Site "https://www.chess.com"]

[Event "Titled Tuesday Blitz June 22 2021"]
[White "Hammer, Jon Ludvig"]
[Black "Ambartsumova, Karina"]
[WhiteFideId "1503707"]
[BlackFideId "4166299"]
[WhiteElo "2607"]
[BlackElo "2262"]
[Result "1-0"]
[Round "05"]
[TimeControl "180+1"]
[Date "2021.06.22"]
[WhiteClock "0:00:07"]
[BlackClock "0:00:05"]

1. e4 {[%clk 0:03:00]}  c5 {[%clk 0:02:37]} 2. Nf3 {[%clk 0:03:00]}  e6 {[%clk 0:02:34]} 3. g3 {[%clk 0:02:57]}  Nc6 {[%clk 0:02:33]} 4. Bg2 {[%clk 0:02:57]}  Nf6 {[%clk 0:02:34]} 5. Nc3 {[%clk 0:02:56]}  d6 {[%clk 0:02:30]} 6. O-O {[%clk 0:02:55]}  Be7 {[%clk 0:02:30]} 7. d4 {[%clk 0:02:54]}  cxd4 {[%clk 0:02:30]} 8. Nxd4 {[%clk 0:02:55]}  Qc7 {[%clk 0:02:28]} 9. Re1 {[%clk 0:02:45]}  O-O {[%clk 0:02:27]} 10. Nxc6 {[%clk 0:02:16]}  bxc6 {[%clk 0:02:28]} 11. e5 {[%clk 0:02:08]}  dxe5 {[%clk 0:02:27]} 12. Qe2 {[%clk 0:02:07]}  Nd7 {[%clk 0:02:17]} 13. b3 {[%clk 0:02:06]}  a5 {[%clk 0:02:14]} 14. Bb2 {[%clk 0:01:53]}  Ba6 {[%clk 0:02:03]} 15. Qf3 {[%clk 0:01:34]}  Rac8 {[%clk 0:01:59]} 16. Bf1 {[%clk 0:01:02]}  Bxf1 {[%clk 0:01:53]} 17. Rxf1 {[%clk 0:01:02]}  f5 {[%clk 0:01:52]} 18. Qe2 {[%clk 0:01:03]}  e4 {[%clk 0:01:20]} 19. f3 {[%clk 0:00:58]}  Bc5+ {[%clk 0:01:09]} 20. Kg2 {[%clk 0:00:58]}  exf3+ {[%clk 0:01:09]} 21. Rxf3 {[%clk 0:00:57]}  Rce8 {[%clk 0:01:08]} 22. Na4 {[%clk 0:00:56]}  Bd6 {[%clk 0:00:51]} 23. Rd1 {[%clk 0:00:55]}  Nf6 {[%clk 0:00:50]} 24. Bxf6 {[%clk 0:00:50]}  Rxf6 {[%clk 0:00:48]} 25. Qc4 {[%clk 0:00:49]}  Kh8 {[%clk 0:00:40]} 26. Rc3 {[%clk 0:00:37]}  Rc8 {[%clk 0:00:27]} 27. Nb6 {[%clk 0:00:29]}  Qxb6 {[%clk 0:00:20]} 28. Rxd6 {[%clk 0:00:29]}  Rff8 {[%clk 0:00:09]} 29. Qxe6 {[%clk 0:00:26]}  Rce8 {[%clk 0:00:04]} 30. Qc4 {[%clk 0:00:20]}  Qc7 {[%clk 0:00:02]} 31. Qxc6 {[%clk 0:00:19]}  Qe7 {[%clk 0:00:02]} 32. Rd2 {[%clk 0:00:17]}  Qe1 {[%clk 0:00:03]} 33. Rf2 {[%clk 0:00:08]}  h6 {[%clk 0:00:03]} 34. Rcf3 {[%clk 0:00:08]}  Qc1 {[%clk 0:00:02]} 35. Qc5 {[%clk 0:00:07]}  Rc8 {[%clk 0:00:01]} 36. Qxa5 {[%clk 0:00:04]}  Rxc2 {[%clk 0:00:01]} 37. Qb4 {[%clk 0:00:03]}  Rxf2+ {[%clk 0:00:01]} 38. Rxf2 {[%clk 0:00:04]}  Qc8 {[%clk 0:00:02]} 39. Qf4 {[%clk 0:00:04]}  Qe6 {[%clk 0:00:02]} 40. Qf3 {[%clk 0:00:05]}  Rf7 {[%clk 0:00:02]} 41. Re2 {[%clk 0:00:05]}  Qf6 {[%clk 0:00:02]} 42. Qa8+ {[%clk 0:00:05]}  Kh7 {[%clk 0:00:03]} 43. Qf3 {[%clk 0:00:06]}  Rd7 {[%clk 0:00:03]} 44. h4 {[%clk 0:00:06]}  Rc7 {[%clk 0:00:03]} 45. h5 {[%clk 0:00:06]}  Rc3 {[%clk 0:00:03]} 46. Qf4 {[%clk 0:00:06]}  Qc6+ {[%clk 0:00:03]} 47. Kh2 {[%clk 0:00:07]}  Qf6 {[%clk 0:00:03]} 48. Rf2 {[%clk 0:00:07]}  Rc5 {[%clk 0:00:03]} 49. b4 {[%clk 0:00:07]}  Re5 {[%clk 0:00:03]} 50. a4 {[%clk 0:00:07]}  Qe6 {[%clk 0:00:02]} 51. b5 {[%clk 0:00:07]}  Re4 {[%clk 0:00:02]} 52. Qxf5+ {[%clk 0:00:07]}  Qxf5 {[%clk 0:00:03]} 53. Rxf5 {[%clk 0:00:07]}  Rxa4 {[%clk 0:00:04]} 54. Kg2 {[%clk 0:00:05]}  Rb4 {[%clk 0:00:04]} 55. Rc5 {[%clk 0:00:06]}  Kg8 {[%clk 0:00:03]} 56. Kf3 {[%clk 0:00:06]}  g6 {[%clk 0:00:04]} 57. hxg6 {[%clk 0:00:06]}  Kg7 {[%clk 0:00:05]} 58. Rc7+ {[%clk 0:00:05]}  Kxg6 {[%clk 0:00:05]} 59. Rc5 {[%clk 0:00:05]}  Kf6 {[%clk 0:00:04]} 60. Ke3 {[%clk 0:00:05]}  Kg6 {[%clk 0:00:05]} 61. Kd3 {[%clk 0:00:03]}  Rb3+ {[%clk 0:00:05]} 62. Kc4 {[%clk 0:00:04]}  Rxg3 {[%clk 0:00:05]} 63. b6 {[%clk 0:00:04]}  Rg1 {[%clk 0:00:03]} 64. Rb5 {[%clk 0:00:04]}  Rc1+ {[%clk 0:00:03]} 65. Kd5 {[%clk 0:00:04]}  Rc8 {[%clk 0:00:04]} 66. b7 {[%clk 0:00:04]}  Rb8 {[%clk 0:00:04]} 67. Kc6 {[%clk 0:00:04]}  h5 {[%clk 0:00:04]} 68. Kc7 {[%clk 0:00:05]}  Rxb7+ {[%clk 0:00:05]} 69. Kxb7 {[%clk 0:00:06]}  h4 {[%clk 0:00:05]} 70. Kc6 {[%clk 0:00:06]}  h3 {[%clk 0:00:05]} 71. Rb3 {[%clk 0:00:06]}  Kg5 {[%clk 0:00:05]} 72. Rxh3 {[%clk 0:00:07]} 1-0


[Site "https://www.chess.com"]

[Event "Titled Tuesday Blitz June 22 2021"]
[White "Herman, Matthew"]
[Black "Kosteniuk, Alexandra"]
[WhiteFideId "2028964"]
[BlackFideId "4128125"]
[WhiteElo "2368"]
[BlackElo "2521"]
[Result "1-0"]
[Round "05"]
[TimeControl "180+1"]
[Date "2021.06.22"]
[WhiteClock "0:00:08"]
[BlackClock "0:00:01"]

1. d4 {[%clk 0:03:00]}  Nf6 {[%clk 0:02:59]} 2. c4 {[%clk 0:03:00]}  e6 {[%clk 0:02:59]} 3. Nc3 {[%clk 0:03:00]}  Bb4 {[%clk 0:02:58]} 4. f3 {[%clk 0:03:00]}  d5 {[%clk 0:02:55]} 5. a3 {[%clk 0:03:00]}  Bxc3+ {[%clk 0:02:55]} 6. bxc3 {[%clk 0:03:01]}  c5 {[%clk 0:02:54]} 7. e3 {[%clk 0:03:01]}  Nc6 {[%clk 0:02:53]} 8. cxd5 {[%clk 0:03:01]}  exd5 {[%clk 0:02:51]} 9. Bd3 {[%clk 0:03:01]}  O-O {[%clk 0:02:45]} 10. Ne2 {[%clk 0:02:55]}  Re8 {[%clk 0:02:45]} 11. O-O {[%clk 0:02:55]}  b6 {[%clk 0:02:44]} 12. Ng3 {[%clk 0:02:54]}  a5 {[%clk 0:02:39]} 13. Bb5 {[%clk 0:02:06]}  Bd7 {[%clk 0:02:31]} 14. a4 {[%clk 0:01:57]}  Ne7 {[%clk 0:02:08]} 15. Bd3 {[%clk 0:01:55]}  Rc8 {[%clk 0:02:05]} 16. Bb2 {[%clk 0:01:40]}  Bc6 {[%clk 0:02:00]} 17. e4 {[%clk 0:01:31]}  dxe4 {[%clk 0:01:48]} 18. fxe4 {[%clk 0:01:32]}  Ng6 {[%clk 0:01:46]} 19. d5 {[%clk 0:01:16]}  Bd7 {[%clk 0:01:31]} 20. c4 {[%clk 0:01:16]}  Ng4 {[%clk 0:01:29]} 21. Qe1 {[%clk 0:00:14]}  Qh4 {[%clk 0:01:22]} 22. h3 {[%clk 0:00:12]}  N4e5 {[%clk 0:01:22]} 23. Be2 {[%clk 0:00:10]}  Nf4 {[%clk 0:01:09]} 24. Ra3 {[%clk 0:00:08]}  f6 {[%clk 0:01:03]} 25. Bc1 {[%clk 0:00:05]}  Nxe2+ {[%clk 0:00:55]} 26. Qxe2 {[%clk 0:00:06]}  Nf7 {[%clk 0:00:44]} 27. Rf4 {[%clk 0:00:05]}  Qg5 {[%clk 0:00:43]} 28. Raf3 {[%clk 0:00:04]}  Qe5 {[%clk 0:00:43]} 29. Bb2 {[%clk 0:00:03]}  Qe7 {[%clk 0:00:38]} 30. Rxf6 {[%clk 0:00:03]}  gxf6 {[%clk 0:00:36]} 31. Bxf6 {[%clk 0:00:04]}  Qd6 {[%clk 0:00:26]} 32. Nh5 {[%clk 0:00:04]}  Ne5 {[%clk 0:00:22]} 33. Rg3+ {[%clk 0:00:05]}  Ng6 {[%clk 0:00:22]} 34. e5 {[%clk 0:00:05]}  Qf8 {[%clk 0:00:20]} 35. Qe3 {[%clk 0:00:03]}  Bxa4 {[%clk 0:00:15]} 36. Qg5 {[%clk 0:00:03]}  Bc2 {[%clk 0:00:14]} 37. e6 {[%clk 0:00:04]}  a4 {[%clk 0:00:14]} 38. Bc3 {[%clk 0:00:04]}  Qe7 {[%clk 0:00:08]} 39. Nf6+ {[%clk 0:00:04]}  Kf8 {[%clk 0:00:08]} 40. Qh6+ {[%clk 0:00:04]}  Qg7 {[%clk 0:00:07]} 41. Nxh7+ {[%clk 0:00:04]}  Ke7 {[%clk 0:00:07]} 42. Qxg7+ {[%clk 0:00:05]}  Kd6 {[%clk 0:00:08]} 43. Qxg6 {[%clk 0:00:06]}  Bxg6 {[%clk 0:00:07]} 44. Rxg6 {[%clk 0:00:06]}  a3 {[%clk 0:00:07]} 45. Ng5 {[%clk 0:00:06]}  a2 {[%clk 0:00:07]} 46. Nf7+ {[%clk 0:00:06]}  Kc7 {[%clk 0:00:06]} 47. d6+ {[%clk 0:00:06]}  Kc6 {[%clk 0:00:06]} 48. d7 {[%clk 0:00:07]}  Ra8 {[%clk 0:00:06]} 49. dxe8=Q+ {[%clk 0:00:07]}  Rxe8 {[%clk 0:00:07]} 50. Ne5+ {[%clk 0:00:07]}  Kb7 {[%clk 0:00:07]} 51. Rg7+ {[%clk 0:00:07]}  Ka6 {[%clk 0:00:07]} 52. e7 {[%clk 0:00:08]}  b5 {[%clk 0:00:07]} 53. cxb5+ {[%clk 0:00:08]}  Kxb5 {[%clk 0:00:07]} 54. h4 {[%clk 0:00:08]}  Ka4 {[%clk 0:00:08]} 55. h5 {[%clk 0:00:08]}  Kb3 {[%clk 0:00:09]} 56. Ba1 {[%clk 0:00:08]}  Kc2 {[%clk 0:00:09]} 57. h6 {[%clk 0:00:08]}  Kb1 {[%clk 0:00:09]} 58. Bc3 {[%clk 0:00:08]}  Rb8 {[%clk 0:00:07]} 59. h7 {[%clk 0:00:08]}  Rb2 {[%clk 0:00:07]} 60. Bxb2 {[%clk 0:00:08]}  Kxb2 {[%clk 0:00:08]} 61. Nc4+ {[%clk 0:00:08]}  Kc2 {[%clk 0:00:04]} 62. Ne3+ {[%clk 0:00:07]}  Kd2 {[%clk 0:00:02]} 63. e8=Q {[%clk 0:00:08]}  a1=Q+ {[%clk 0:00:02]} 64. Kh2 {[%clk 0:00:08]}  Qd4 {[%clk 0:00:01]} 65. Nf5 {[%clk 0:00:08]}  Qf4+ {[%clk 0:00:01]} 66. Rg3 {[%clk 0:00:07]}  Qxf5 {[%clk 0:00:01]} 67. h8=Q {[%clk 0:00:07]}  Qf4 {[%clk 0:00:01]} 68. Qh3 {[%clk 0:00:08]} 1-0


[Site "https://www.chess.com"]

[Event "Titled Tuesday Blitz June 22 2021"]
[White "Hess, Robert"]
[Black "Kononenko, Dmitry"]
[WhiteFideId "2022036"]
[BlackFideId "14113538"]
[WhiteElo "2557"]
[BlackElo "2289"]
[Result "1-0"]
[Round "05"]
[TimeControl "180+1"]
[Date "2021.06.22"]
[WhiteClock "0:02:06"]
[BlackClock "0:02:14"]

1. b3 {[%clk 0:03:00]}  Nf6 {[%clk 0:02:56]} 2. Bb2 {[%clk 0:03:01]}  c5 {[%clk 0:02:56]} 3. e3 {[%clk 0:03:00]}  Nc6 {[%clk 0:02:56]} 4. Nf3 {[%clk 0:03:00]}  d5 {[%clk 0:02:56]} 5. Bb5 {[%clk 0:03:00]}  Bd7 {[%clk 0:02:55]} 6. O-O {[%clk 0:03:00]}  e6 {[%clk 0:02:53]} 7. c4 {[%clk 0:03:01]}  Bd6 {[%clk 0:02:51]} 8. cxd5 {[%clk 0:03:00]}  exd5 {[%clk 0:02:52]} 9. d4 {[%clk 0:03:00]}  O-O {[%clk 0:02:37]} 10. dxc5 {[%clk 0:03:00]}  Bxc5 {[%clk 0:02:38]} 11. Nc3 {[%clk 0:03:01]}  Bg4 {[%clk 0:02:36]} 12. Be2 {[%clk 0:02:54]}  Rc8 {[%clk 0:02:29]} 13. Rc1 {[%clk 0:02:54]}  Bd6 {[%clk 0:02:26]} 14. Nd4 {[%clk 0:02:49]}  Bxe2 {[%clk 0:02:22]} 15. Ncxe2 {[%clk 0:02:30]}  Ne4 {[%clk 0:02:20]} 16. Nf5 {[%clk 0:02:10]}  Be5 {[%clk 0:02:19]} 17. Bxe5 {[%clk 0:02:06]}  Nxe5 {[%clk 0:02:20]} 18. Rxc8 {[%clk 0:02:06]}  Qxc8 {[%clk 0:02:14]} 19. Ne7+ {[%clk 0:02:06]} 1-0


[Site "https://www.chess.com"]

[Event "Titled Tuesday Blitz June 22 2021"]
[White "Ibrahimli, Murad"]
[Black "Zubov, Alexander"]
[WhiteFideId "13410229"]
[BlackFideId "14109409"]
[WhiteElo "2109"]
[BlackElo "2740"]
[Result "0-1"]
[Round "05"]
[TimeControl "180+1"]
[Date "2021.06.22"]
[WhiteClock "0:00:02"]
[BlackClock "0:00:07"]

1. Nf3 {[%clk 0:03:00]}  d5 {[%clk 0:02:58]} 2. d4 {[%clk 0:02:56]}  Nf6 {[%clk 0:02:57]} 3. c4 {[%clk 0:02:55]}  c6 {[%clk 0:02:57]} 4. e3 {[%clk 0:02:54]}  a6 {[%clk 0:02:56]} 5. Nc3 {[%clk 0:02:53]}  b5 {[%clk 0:02:53]} 6. c5 {[%clk 0:02:51]}  Bg4 {[%clk 0:02:51]} 7. Be2 {[%clk 0:02:49]}  Nbd7 {[%clk 0:02:48]} 8. O-O {[%clk 0:02:45]}  g6 {[%clk 0:02:43]} 9. h3 {[%clk 0:02:44]}  Bxf3 {[%clk 0:02:43]} 10. Bxf3 {[%clk 0:02:45]}  Bg7 {[%clk 0:02:33]} 11. e4 {[%clk 0:02:36]}  dxe4 {[%clk 0:02:32]} 12. Nxe4 {[%clk 0:02:36]}  Nd5 {[%clk 0:02:31]} 13. Be3 {[%clk 0:02:03]}  O-O {[%clk 0:02:28]} 14. Re1 {[%clk 0:01:59]}  Qc7 {[%clk 0:02:17]} 15. Nc3 {[%clk 0:01:53]}  Nxe3 {[%clk 0:02:12]} 16. fxe3 {[%clk 0:01:44]}  Rad8 {[%clk 0:01:51]} 17. Qe2 {[%clk 0:01:42]}  e5 {[%clk 0:01:44]} 18. Rad1 {[%clk 0:01:40]}  f5 {[%clk 0:01:39]} 19. Qf2 {[%clk 0:01:01]}  Kh8 {[%clk 0:01:21]} 20. b4 {[%clk 0:00:53]}  e4 {[%clk 0:01:08]} 21. Be2 {[%clk 0:00:52]}  Nf6 {[%clk 0:01:07]} 22. g3 {[%clk 0:00:49]}  Bh6 {[%clk 0:01:05]} 23. Kg2 {[%clk 0:00:41]}  Qf7 {[%clk 0:01:02]} 24. Rd2 {[%clk 0:00:36]}  Rd7 {[%clk 0:00:52]} 25. Rf1 {[%clk 0:00:33]}  Qe6 {[%clk 0:00:51]} 26. Rb2 {[%clk 0:00:23]}  Rdf7 {[%clk 0:00:34]} 27. Bd1 {[%clk 0:00:22]}  Nd5 {[%clk 0:00:32]} 28. Nxd5 {[%clk 0:00:21]}  cxd5 {[%clk 0:00:32]} 29. a4 {[%clk 0:00:21]}  g5 {[%clk 0:00:32]} 30. axb5 {[%clk 0:00:21]}  axb5 {[%clk 0:00:32]} 31. Qe1 {[%clk 0:00:16]}  f4 {[%clk 0:00:31]} 32. Bh5 {[%clk 0:00:16]}  Rf6 {[%clk 0:00:28]} 33. Rbf2 {[%clk 0:00:16]}  f3+ {[%clk 0:00:20]} 34. Kh2 {[%clk 0:00:17]}  g4 {[%clk 0:00:21]} 35. Bxg4 {[%clk 0:00:17]}  Qf7 {[%clk 0:00:20]} 36. Qc3 {[%clk 0:00:17]}  Bg5 {[%clk 0:00:19]} 37. h4 {[%clk 0:00:17]}  Rh6 {[%clk 0:00:19]} 38. Bh3 {[%clk 0:00:17]}  Be7 {[%clk 0:00:15]} 39. c6 {[%clk 0:00:17]}  Bd6 {[%clk 0:00:15]} 40. c7 {[%clk 0:00:17]}  Bxc7 {[%clk 0:00:15]} 41. Rc1 {[%clk 0:00:15]}  Bd6 {[%clk 0:00:14]} 42. Qb3 {[%clk 0:00:02]}  Rg8 {[%clk 0:00:11]} 43. Rg1 {[%clk 0:00:01]}  Rxh4 {[%clk 0:00:10]} 44. Qd1 {[%clk 0:00:02]}  Qf5 {[%clk 0:00:08]} 45. Qf1 {[%clk 0:00:03]}  Rg6 {[%clk 0:00:07]} 46. Rb2 {[%clk 0:00:02]}  Rgh6 {[%clk 0:00:07]} 0-1


[Site "https://www.chess.com"]

[Event "Titled Tuesday Blitz June 22 2021"]
[White "Izoria, Zviad"]
[Black "Martinez Alcantara, Jose Eduardo"]
[WhiteFideId "13601733"]
[BlackFideId "3805662"]
[WhiteElo "2626"]
[BlackElo "2690"]
[Result "0-1"]
[Round "05"]
[TimeControl "180+1"]
[Date "2021.06.22"]
[WhiteClock "0:00:20"]
[BlackClock "0:00:35"]

1. Nf3 {[%clk 0:03:00]}  c5 {[%clk 0:02:59]} 2. c4 {[%clk 0:03:00]}  Nc6 {[%clk 0:02:59]} 3. Nc3 {[%clk 0:03:00]}  Nf6 {[%clk 0:02:59]} 4. e3 {[%clk 0:03:00]}  g6 {[%clk 0:02:51]} 5. d4 {[%clk 0:02:59]}  cxd4 {[%clk 0:02:50]} 6. exd4 {[%clk 0:03:00]}  Bg7 {[%clk 0:02:39]} 7. d5 {[%clk 0:03:00]}  Nb4 {[%clk 0:02:39]} 8. Be2 {[%clk 0:02:55]}  O-O {[%clk 0:02:39]} 9. O-O {[%clk 0:02:55]}  e6 {[%clk 0:02:18]} 10. Bf4 {[%clk 0:02:42]}  exd5 {[%clk 0:02:17]} 11. Bd6 {[%clk 0:02:38]}  a5 {[%clk 0:02:14]} 12. Bxf8 {[%clk 0:02:24]}  Bxf8 {[%clk 0:02:13]} 13. a3 {[%clk 0:02:23]}  Na6 {[%clk 0:02:10]} 14. Nxd5 {[%clk 0:02:06]}  Bg7 {[%clk 0:02:10]} 15. Nc3 {[%clk 0:01:53]}  Nc5 {[%clk 0:02:05]} 16. Nd4 {[%clk 0:01:52]}  a4 {[%clk 0:02:02]} 17. Ndb5 {[%clk 0:01:46]}  Ra6 {[%clk 0:01:49]} 18. Qc2 {[%clk 0:01:45]}  d6 {[%clk 0:01:48]} 19. Rad1 {[%clk 0:01:41]}  Bf5 {[%clk 0:01:48]} 20. Qd2 {[%clk 0:01:41]}  Nfe4 {[%clk 0:01:37]} 21. Nxe4 {[%clk 0:01:40]}  Nxe4 {[%clk 0:01:38]} 22. Qc1 {[%clk 0:01:37]}  Nc5 {[%clk 0:01:30]} 23. Qf4 {[%clk 0:01:29]}  Qe7 {[%clk 0:01:29]} 24. Rfe1 {[%clk 0:01:25]}  Be5 {[%clk 0:01:28]} 25. Qe3 {[%clk 0:01:12]}  Qf6 {[%clk 0:01:24]} 26. Nc7 {[%clk 0:01:06]}  Ra5 {[%clk 0:01:00]} 27. Nd5 {[%clk 0:01:06]}  Qd8 {[%clk 0:00:54]} 28. Qd2 {[%clk 0:00:28]}  Nb3 {[%clk 0:00:46]} 29. Qb4 {[%clk 0:00:27]}  Bc2 {[%clk 0:00:45]} 30. Qxb7 {[%clk 0:00:24]}  Bxd1 {[%clk 0:00:45]} 31. Bxd1 {[%clk 0:00:24]}  Nc5 {[%clk 0:00:43]} 32. Ne7+ {[%clk 0:00:19]}  Kf8 {[%clk 0:00:36]} 33. Nc6 {[%clk 0:00:20]}  Nxb7 {[%clk 0:00:35]} 0-1


[Site "https://www.chess.com"]